bitfinex/quotes_ETHUSD_20240709
["timestamp","ask_amount","ask_price","bid_price","bid_amount"]
[1720501160829,7.36,3080.8,3080.4,3.2463]
[1720501161014,0.03433541,3080.5,3080.4,3.2463]
[1720501161223,7.36,3080.8,3080.4,3.2463]
[1720501161658,0.03440607,3080.7,3080.4,3.2463]
[1720501161826,7.36,3080.8,3080.4,3.2463]
[1720501162030,0.03440607,3080.7,3080.4,3.2463]
[1720501162226,7.36,3080.8,3080.4,3.2463]
[1720501162426,0.034421,3080.7,3080.5,3.24621]
[1720501162863,7.36,3080.8,3080.5,3.24621]
[1720501163035,0.03439313,3080.6,3080.5,3.24621]
[1720501163668,7.36,3080.8,3080.7,3.24601]
[1720501163828,7.36,3080.8,3080.7,6.49202]
[1720501164168,7.36,3080.8,3080.7,7.04202]
[1720501165228,7.36,3081.3,3081.1,3.24559]
[1720501165568,19.82,3081.6,3081.1,3.24559]
[1720501166343,1.12442731,3081.5,3080.9,3.24578]
[1720501166589,2.3661,3081.2,3079.8,3.24692]
[1720501166734,8.79843946,3081.1,3080.0,3.24668]
[1720501167076,8.79843946,3081.1,3079.8,3.24696]
[1720501167077,4.0601,3080.9,3079.8,3.24696]
[1720501167233,1.43843946,3080.8,3079.8,3.24696]
[1720501167434,1.98829341,3080.7,3080.0,3.24675]
[1720501167635,2.3661,3080.9,3080.1,3.24661]
[1720501168181,1.439003,3080.8,3079.9,3.24684]
[1720501168473,1.12480218,3080.7,3079.9,3.24684]
[1720501168668,1.36141218,3080.8,3079.9,3.24684]
[1720501168832,1.12480218,3080.7,3080.1,3.24663]
[1720501169174,2.3661,3080.9,3080.1,3.24663]
[1720501169342,1.12474865,3080.8,3080.1,3.24663]
[1720501169663,1.12474865,3080.7,3080.1,3.24663]
[1720501169874,1.12474865,3080.8,3079.8,3.24689]
[1720501170028,1.43896148,3080.7,3079.8,3.24689]
[1720501170231,1.12474865,3080.6,3079.7,3.24706]
[1720501170472,1.12474865,3080.6,3079.6,3.24716]
[1720501170473,0.3143216,3080.5,3079.6,3.24716]
[1720501170679,1.12474865,3080.4,3079.6,3.24716]
[1720501170828,2.40046012,3080.3,3079.6,3.24716]
[1720501171035,2.752981,3080.3,3079.6,3.24716]
[1720501171453,2.752981,3080.3,3079.1,2.2627]
[1720501171681,1.12496483,3080.2,3079.5,3.24718]
[1720501171965,2.752981,3080.3,3079.5,3.24718]
[1720501171966,2.752981,3080.3,3079.5,3.24727]
[1720501172172,0.03420247,3080.1,3079.3,3.24742]
[1720501172343,0.30954338,3080.2,3079.3,3.24742]
[1720501172667,0.03418726,3080.0,3079.2,3.24757]
[1720501172966,0.03415938,3079.9,3079.3,3.24749]
[1720501173676,0.2752981,3080.2,3079.3,3.24749]
[1720501173844,1.38919676,3080.1,3079.3,3.24749]
[1720501174045,1.12508383,3080.0,3079.1,3.24769]
[1720501174245,1.12508383,3080.0,3078.7,3.24809]
[1720501174246,2.3508,3080.0,3078.7,3.24809]
[1720501174446,1.73701256,3079.9,3078.7,3.24809]
[1720501174749,1.12513721,3079.8,3078.9,3.2479]
[1720501174967,0.29740878,3079.9,3079.0,3.2478]
[1720501175159,0.03258899,3079.7,3079.0,3.2478]
[1720501175355,0.03261687,3079.8,3079.0,3.2478]
[1720501175556,0.03256111,3079.6,3079.1,3.24769]
[1720501175869,2.3508,3080.0,3079.1,3.24769]
[1720501175870,0.03258899,3079.7,3079.1,3.24769]
[1720501176171,0.03256111,3079.6,3079.0,3.24772]
[1720501176376,0.03256111,3079.6,3078.9,3.24791]
[1720501176668,3.01507921,3080.0,3079.0,3.2478]
[1720501176878,0.03249164,3079.5,3079.0,3.2478]
[1720501177075,3.01507921,3080.0,3079.0,3.2478]
[1720501177247,0.03241893,3079.4,3079.0,3.2478]
[1720501177445,0.60150792,3079.9,3079.0,3.2478]
[1720501177639,0.03235694,3079.3,3078.8,3.24794]
[1720501177841,1.12518342,3079.8,3078.8,3.24794]
[1720501177842,0.36165871,3079.8,3078.8,3.24794]
[1720501178066,1.12522924,3079.7,3078.8,3.24799]
[1720501178239,0.0325133,3079.7,3078.8,3.24799]
[1720501178436,0.0325133,3079.7,3078.5,3.24825]
[1720501178437,2.3977,3079.6,3078.5,3.24825]
[1720501178743,0.27552368,3079.5,3078.5,3.24825]
[1720501178945,1.40083742,3079.5,3078.5,3.24825]
[1720501179142,0.27552368,3079.5,3078.5,3.24825]
[1720501179338,1.12532567,3079.4,3078.5,3.24825]
[1720501179539,0.03246152,3079.3,3078.1,5.53376]
[1720501179785,0.03246152,3079.3,3078.3,3.24854]
[1720501181545,2.4419,3079.2,3078.3,3.24854]
[1720501181742,2.4419,3079.2,3078.1,3.24875]
[1720501181743,0.03248045,3079.1,3078.1,3.24875]
[1720501182058,0.2799185,3079.1,3078.2,3.24863]
[1720501182742,0.2799185,3079.1,3078.1,3.24875]
[1720501182743,0.2799185,3079.1,3078.3,3.24851]
[1720501183139,0.03248045,3079.1,3078.3,3.24851]
[1720501183368,0.03248045,3079.1,3078.6,3.24815]
[1720501183683,0.03248045,3079.1,3078.6,6.4963]
[1720501184242,0.03248045,3079.1,3078.7,3.79811]
[1720501184470,2.372,3079.5,3078.9,3.24784]
[1720501184668,0.03237017,3079.0,3078.9,3.24784]
[1720501184869,2.372,3079.5,3078.9,3.24784]
[1720501185140,2.372,3079.5,3078.8,3.248]
[1720501185141,0.03225202,3079.4,3078.8,3.248]
[1720501185845,0.03225202,3079.4,3078.9,3.24789]
[1720501186482,0.03225202,3079.4,3078.7,3.79806]
[1720501187480,0.03225202,3079.4,3078.3,2.3681]
[1720501187481,0.27267722,3079.4,3078.4,3.24836]
[1720501187694,0.27267722,3079.4,3078.3,3.2485]
[1720501187695,0.27267722,3079.4,3078.5,3.24829]
[1720501190588,0.27267722,3079.4,3078.3,6.49696]
[1720501190769,1.00046772,3079.3,3078.4,0.55]
[1720501190968,0.03214618,3079.2,3078.4,3.79842]
[1720501191706,2.4338,3079.1,3078.0,3.24879]
[1720501191902,9.7938,3079.1,3078.1,3.24875]
[1720501192082,0.27868502,3079.0,3078.1,3.24875]
[1720501194301,0.27868502,3079.0,3077.9,3.24896]
[1720501196195,0.27868502,3079.0,3078.0,3.24884]
[1720501196586,0.27868502,3079.0,3077.9,3.24896]
[1720501196782,0.27868502,3079.0,3077.8,3.24907]
[1720501196783,1.0072485,3078.9,3077.8,3.24907]
[1720501197020,2.4953,3078.8,3077.8,3.24907]
[1720501197182,2.52726894,3078.8,3077.5,3.24934]
[1720501197530,1.1255864,3078.7,3077.5,3.24934]
[1720501197686,0.36528553,3078.6,3077.6,3.24928]
[1720501197887,0.39719868,3078.6,3077.6,3.24928]
[1720501198797,2.4953,3078.5,3077.6,3.24928]
[1720501198991,0.28924987,3078.4,3077.6,3.24928]
[1720501199243,0.28924987,3078.4,3077.4,3.24948]
[1720501199244,0.32083187,3078.4,3077.4,3.24948]
[1720501199428,0.031582,3078.4,3077.6,3.24921]
[1720501199727,0.031582,3078.4,3077.9,3.24896]
[1720501200318,0.031582,3078.4,3077.5,0.55]
[1720501200319,0.031582,3078.4,3078.0,3.2488]
[1720501200523,0.34024192,3078.3,3078.0,3.2488]
[1720501201031,0.34024192,3078.3,3078.1,3.24868]
[1720501201453,0.34024192,3078.3,3078.0,3.2488]
[1720501201619,0.62695431,3078.3,3077.7,3.24916]
[1720501201819,0.34024192,3078.3,3077.8,3.24905]
[1720501202030,0.34024192,3078.3,3078.0,3.24883]
[1720501202227,0.34024192,3078.3,3078.2,3.24865]
[1720501204035,0.34024192,3078.3,3078.1,3.24873]
[1720501204461,0.34024192,3078.3,3077.9,3.2489]
[1720501204650,0.34024192,3078.3,3078.0,3.24877]
[1720501204864,0.34024192,3078.3,3078.2,3.24865]
[1720501205922,0.34024192,3078.3,3078.2,0.55]
[1720501206128,0.34024192,3078.3,3077.9,3.24892]
[1720501206632,0.34024192,3078.3,3077.7,3.24915]
[1720501206847,2.4323,3078.2,3077.5,3.2493]
[1720501207157,2.4323,3078.2,3077.6,3.79927]
[1720501207571,2.71271239,3078.2,3077.4,3.2494]
[1720501207726,1.12570646,3078.1,3077.4,3.2494]
[1720501208063,1.12571987,3078.0,3077.4,3.2494]
[1720501208246,2.71271239,3078.2,3077.2,3.24962]
[1720501208557,1.43102515,3078.1,3077.2,3.24962]
[1720501208721,0.30529543,3078.1,3077.1,3.24979]
[1720501208922,3.49534383,3078.0,3077.1,3.24979]
[1720501209125,1.12574383,3077.9,3076.9,3.24992]
[1720501209648,1.12574383,3077.9,3077.0,3.24991]
[1720501210167,2.3696,3078.0,3077.1,3.2498]
[1720501210469,2.3696,3078.0,3077.5,3.24938]
[1720501210626,2.60744192,3078.3,3077.6,3.86416727]
[1720501210843,2.60744192,3078.3,3077.7,3.24916]
[1720501211483,0.34024192,3078.3,3077.8,0.06497705]
[1720501211631,0.031582,3078.4,3077.8,0.06497705]
[1720501211632,0.031582,3078.4,3078.3,3.24854]
[1720501211966,0.031582,3078.4,3078.3,10.29562]
[1720501212880,0.031582,3078.4,3078.3,7.04708]
[1720501213036,0.031582,3078.4,3078.3,3.79854]
[1720501213239,0.031582,3078.4,3077.7,4.94517272]
[1720501213240,0.031582,3078.4,3077.9,3.24896]
[1720501213968,0.031582,3078.4,3077.1,1.69643532]
[1720501213969,0.2810402,3078.4,3077.1,1.69643532]
[1720501214134,0.2810402,3078.4,3077.5,3.24937]
[1720501214544,0.2810402,3078.4,3077.6,3.24924]
[1720501214746,0.27440402,3078.3,3077.6,3.24924]
[1720501214938,0.031582,3078.4,3077.7,3.24915]
[1720501215139,0.031582,3078.4,3077.9,3.24895]
[1720501216577,0.031582,3078.4,3078.2,3.24863]
[1720501217178,0.031582,3078.4,3078.0,3.79886]
[1720501217348,0.2494582,3078.3,3077.8,3.24903]
[1720501217779,0.03132574,3078.2,3077.8,3.24903]
[1720501217941,0.03132574,3078.2,3077.6,3.24924]
[1720501218140,0.03132574,3078.2,3076.3,8.28515033]
[1720501218141,1.12569319,3078.1,3077.1,3.2498]
[1720501218453,0.3832099,3078.0,3077.0,3.24991]
[1720501218650,1.50895138,3078.0,3077.0,3.24991]
[1720501218857,1.50895138,3078.0,3076.7,3.25019]
[1720501218858,1.12574148,3077.9,3076.8,3.25006]
[1720501219049,1.12574148,3077.9,3076.7,3.25019]
[1720501219050,1.34202755,3077.9,3076.9,3.24997]
[1720501219280,0.21628607,3077.9,3076.9,3.24997]
[1720501221278,3.58181099,3077.8,3076.9,3.24997]
[1720501221443,0.37980971,3077.7,3076.9,3.24997]
[1720501221644,0.41065344,3077.7,3076.9,3.24997]
[1720501221991,2.456,3077.5,3076.1,3.25085]
[1720501222191,2.456,3077.5,3075.9,3.92792917]
[1720501222192,1.5156604,3077.4,3075.9,3.25105]
[1720501222356,1.5156604,3077.4,3075.8,3.25117]
[1720501222357,2.62421426,3077.3,3075.8,3.25117]
[1720501222556,1.44170697,3077.2,3075.8,3.25117]
[1720501222744,1.98793144,3077.2,3075.6,3.25139]
[1720501222950,1.44185459,3077.1,3075.8,3.25117]
[1720501223152,1.44185459,3077.0,3075.8,3.25117]
[1720501223352,1.12626861,3076.9,3075.8,3.25117]
[1720501223579,0.03087559,3077.0,3075.8,3.25117]
[1720501223913,0.03065469,3076.8,3075.8,3.25117]
[1720501224092,0.03068262,3076.9,3075.8,3.25117]
[1720501224272,0.03062675,3076.7,3075.8,3.25117]
[1720501224473,0.23393268,3076.6,3075.8,3.25117]
[1720501224672,0.2645315,3076.6,3075.6,3.25139]
[1720501224881,0.2645315,3076.6,3075.7,3.25121]
[1720501229568,0.2645315,3076.6,3075.3,3.25164]
[1720501229768,0.2645315,3076.6,3075.4,3.2516]
[1720501229769,2.4761,3076.4,3075.4,3.2516]
[1720501230095,0.32645315,3076.5,3074.9,3.2521]
[1720501230096,2.50629559,3076.3,3074.9,3.2521]
[1720501230302,2.50629559,3076.3,3075.0,3.25197]
[1720501230499,3.0,3076.2,3075.0,3.25197]
[1720501230716,0.55062956,3076.1,3075.1,3.25191]
[1720501230866,2.4761,3076.0,3073.9,1.69047752]
[1720501231199,2.4761,3076.0,3074.6,3.25238]
[1720501231200,5.50593563,3076.0,3074.6,3.25238]
[1720501231504,0.50135931,3075.9,3074.9,3.25212]
[1720501231824,0.03135382,3075.9,3075.0,0.06503794]
[1720501232311,0.03135382,3075.9,3075.1,0.55]
[1720501232514,0.03135382,3075.9,3075.2,0.06501284]
[1720501232812,2.4274,3076.5,3075.3,0.55]
[1720501232962,2.59799206,3076.8,3076.1,3.25085]
[1720501233170,2.2634,3076.9,3076.1,3.25085]
[1720501233477,1.5,3077.1,3076.5,3.25035]
[1720501233678,1.5,3077.1,3076.6,3.25032]
[1720501233865,0.03308531,3077.0,3076.6,3.25032]
[1720501236270,0.03308531,3077.0,3076.4,3.25055]
[1720501236520,0.03308531,3077.0,3076.0,3.2509]
[1720501237010,0.03308531,3077.0,3075.6,3.25137]
[1720501237011,2.4627,3076.9,3075.6,3.25137]
[1720501237215,0.03100168,3076.8,3075.4,3.25157]
[1720501237423,2.4627,3076.7,3075.4,3.25157]
[1720501237577,2.4627,3076.7,3074.8,3.25223]
[1720501237578,0.28269213,3076.6,3075.6,3.25131]
[1720501237776,3.28269213,3076.6,3075.6,3.25131]
[1720501237980,3.28269213,3076.6,3075.7,3.25128]
[1720501239398,3.28269213,3076.6,3075.6,3.25131]
[1720501239716,0.57453921,3076.5,3075.7,3.2512]
[1720501240018,2.4627,3076.7,3075.0,3.25198]
[1720501240019,0.03101631,3076.4,3076.1,3.25086]
[1720501240222,2.4627,3076.7,3076.1,3.25086]
[1720501240388,2.4627,3076.7,3076.3,3.25065]
[1720501240722,2.4722,3077.2,3076.3,3.25065]
[1720501240881,0.28126585,3077.1,3076.3,3.25065]
[1720501241083,0.31040995,3077.1,3076.3,3.25065]
[1720501241429,0.31040995,3077.1,3076.1,3.25079]
[1720501241723,2.2702,3077.0,3075.8,3.80116]
[1720501241869,2.2702,3077.0,3075.8,3.25116]
[1720501242073,2.29936802,3076.9,3075.8,3.25116]
[1720501242275,2.29936802,3076.9,3075.6,3.25135]
[1720501242471,2.29936802,3076.9,3075.7,3.25129]
[1720501242472,2.2702,3076.7,3075.7,3.25129]
[1720501243045,5.2828,3077.2,3075.5,3.2515]
[1720501243046,2.2702,3076.5,3075.5,3.2515]
[1720501243241,2.2702,3076.5,3075.4,3.2516]
[1720501243453,0.03101331,3076.4,3075.4,3.2516]
[1720501243605,0.23012133,3076.3,3075.4,3.2516]
[1720501243814,0.03095343,3076.2,3075.5,3.2515]
[1720501245464,0.03095343,3076.2,3075.7,3.25118]
[1720501245624,0.03095343,3076.2,3075.9,3.25107]
[1720501245808,2.2702,3076.5,3075.9,3.25107]
[1720501246008,0.03315441,3076.4,3075.9,3.25107]
[1720501246851,0.26348985,3076.4,3075.9,3.25107]
[1720501247146,0.26348985,3076.4,3075.7,3.25118]
[1720501247447,0.26348985,3076.4,3075.9,3.25106]
[1720501248429,0.03315441,3076.4,3075.9,3.25106]
[1720501249615,0.03315441,3076.4,3076.1,3.25079]
[1720501249820,2.4251,3076.9,3076.4,3.25053]
[1720501250010,0.03084981,3076.8,3076.6,3.25031]
[1720501250211,0.48599921,3077.4,3076.6,3.25031]
[1720501250417,1.15530376,3077.3,3076.6,3.25031]
[1720501250619,0.02921066,3077.3,3076.6,3.25031]
[1720501251041,1.12606053,3077.2,3076.6,3.25031]
[1720501251247,0.02916231,3077.1,3076.6,3.25031]
[1720501251724,0.29245992,3077.3,3076.6,3.25031]
[1720501251921,0.02922326,3077.0,3076.7,3.25021]
[1720501252226,0.02919306,3076.9,3076.7,3.25021]
[1720501252534,0.29245992,3077.3,3076.7,3.25021]
[1720501252870,1.12606873,3077.2,3076.7,3.25021]
[1720501253032,0.02927455,3077.2,3076.7,3.25021]
[1720501253236,0.02927455,3077.2,3076.6,3.25033]
[1720501253433,1.12608025,3077.1,3076.6,3.25033]
[1720501253642,0.0292187,3077.0,3076.6,3.25033]
[1720501254063,0.29245992,3077.3,3076.9,3.24993]
[1720501254258,0.48599921,3077.4,3076.9,3.24993]
[1720501254557,1.12599866,3077.3,3075.7,2.3248]
[1720501254861,1.12599866,3077.2,3076.4,3.25054]
[1720501255061,1.41845858,3077.3,3076.4,3.25054]
[1720501255247,1.12599866,3077.2,3076.4,3.25054]
[1720501255449,1.12599866,3077.2,3076.5,3.25042]
[1720501256461,1.12599866,3077.2,3076.6,3.25033]
[1720501256649,1.31644444,3077.2,3076.6,3.25033]
[1720501256850,0.19044578,3077.2,3076.6,3.25033]
[1720501257053,0.29245992,3077.3,3076.4,3.25054]
[1720501257330,1.12607638,3077.2,3076.4,3.25054]
[1720501257528,0.29245992,3077.3,3076.1,3.25078]
[1720501257529,3.62139948,3077.1,3076.1,3.25078]
[1720501257761,1.12609948,3077.0,3076.1,3.25078]
[1720501258428,2.4953,3076.9,3075.7,3.25121]
[1720501258631,1.12609948,3076.8,3075.7,3.25121]
[1720501258938,1.12609948,3076.8,3075.9,3.25105]
[1720501259126,1.12609948,3076.8,3076.1,3.25085]
[1720501259322,2.85743995,3076.9,3076.4,3.25055]
[1720501259539,2.4953,3076.9,3076.4,3.25055]
[1720501259734,2.4953,3076.9,3076.3,3.25059]
[1720501260730,2.3302,3077.3,3076.0,5.64161]
[1720501260956,2.3302,3077.3,3076.6,3.25026]
[1720501261172,1.40769321,3077.2,3076.6,3.25026]
[1720501261374,0.28161992,3077.2,3076.6,3.25026]
[1720501261665,1.1260676,3077.1,3076.6,3.25026]
[1720501261842,2.3302,3077.3,3076.6,3.25026]
[1720501262168,7.36,3077.6,3077.4,3.24949]
[1720501262353,19.82,3078.1,3077.4,3.24949]
[1720501262559,2.21789,3078.0,3077.6,3.24924]
[1720501262862,2.3589,3078.2,3077.5,3.24931]
[1720501263164,1.12570384,3078.1,3077.4,3.24949]
[1720501263367,0.23589,3078.1,3077.4,3.24949]
[1720501264230,0.23589,3078.1,3077.0,3.24989]
[1720501264434,3.52058578,3078.0,3076.9,3.25001]
[1720501264775,2.3948,3078.0,3077.1,3.24973]
[1720501264930,2.3948,3078.0,3077.2,3.2497]
[1720501265326,2.3948,3078.0,3077.5,3.24937]
[1720501265868,2.3948,3078.0,3077.6,3.24924]
[1720501266473,9.6498,3078.5,3077.9,3.24887]
[1720501266740,2.2898,3078.5,3077.9,3.24887]
[1720501267154,2.2898,3078.5,3078.0,3.24885]
[1720501267946,7.36,3078.9,3078.3,3.24854]
[1720501268131,8.096,3078.9,3078.3,3.24854]
[1720501268535,8.096,3078.9,3077.9,3.24893]
[1720501269479,8.096,3078.9,3078.0,3.24882]
[1720501270131,8.096,3078.9,3077.7,0.55]
[1720501270333,8.096,3078.9,3077.9,3.24886]
[1720501270532,7.36,3078.9,3077.9,3.24886]
[1720501270768,7.36,3078.9,3078.1,3.24872]
[1720501271160,7.36,3078.9,3078.4,3.24841]
[1720501272178,2.3807,3078.8,3078.4,3.24841]
[1720501272379,2.3807,3078.8,3078.2,3.24858]
[1720501272548,2.3807,3078.8,3077.5,2.4478]
[1720501272549,0.23807,3078.7,3077.8,3.24906]
[1720501272759,2.3807,3078.8,3077.7,3.24912]
[1720501272942,2.3807,3078.8,3078.0,3.24883]
[1720501273151,2.3807,3078.8,3078.3,3.24854]
[1720501273845,2.3807,3078.8,3078.1,3.24873]
[1720501274047,2.3807,3078.8,3077.7,5.70952]
[1720501274048,2.3807,3078.8,3077.7,3.2491]
[1720501274364,0.23807,3078.7,3078.0,3.24884]
[1720501274567,2.3807,3078.8,3078.2,3.24855]
[1720501274778,2.3807,3078.8,3077.8,3.24903]
[1720501275244,2.3807,3078.8,3076.9,2.4913]
[1720501275245,2.3923,3078.7,3076.9,2.4913]
[1720501275446,2.82723,3078.6,3076.9,2.4913]
[1720501275675,3.0,3078.5,3076.9,2.4913]
[1720501276079,2.3923,3078.6,3077.3,3.24953]
[1720501276472,2.3923,3078.6,3077.4,3.24947]
[1720501277189,2.3923,3078.6,3077.8,3.24899]
[1720501277481,2.3923,3078.6,3077.8,6.49798]
[1720501277680,0.23923,3078.5,3077.7,3.24917]
[1720501277880,3.23923,3078.5,3077.7,3.24917]
[1720501278382,2.3536,3078.4,3076.5,2.4302]
[1720501278612,0.559283,3078.3,3077.3,3.24953]
[1720501278888,2.3536,3078.4,3076.7,3.25019]
[1720501278889,2.3536,3078.4,3076.7,3.25021]
[1720501279056,2.4725,3078.3,3076.9,3.24992]
[1720501279250,2.4725,3078.3,3077.0,3.24981]
[1720501279457,2.3905,3078.2,3076.9,3.24992]
[1720501279757,5.93775,3078.2,3077.1,3.2497]
[1720501280094,5.93775,3078.2,3077.4,3.24942]
[1720501281005,2.93775,3078.2,3077.5,3.24936]
[1720501281212,2.3905,3078.2,3077.5,3.24936]
[1720501281406,2.3905,3078.2,3077.3,3.2495]
[1720501281577,2.3905,3078.2,3077.4,3.24942]
[1720501281900,2.3905,3078.2,3077.5,3.24937]
[1720501282108,2.3905,3078.2,3076.8,3.25012]
[1720501282109,2.3905,3078.2,3077.8,3.24907]
[1720501282470,2.4015,3078.5,3077.9,3.24895]
[1720501284025,2.4015,3078.5,3077.4,3.24946]
[1720501284208,2.4015,3078.5,3077.5,0.55]
[1720501284370,0.28515,3078.4,3077.6,3.2492]
[1720501284568,2.4015,3078.5,3077.6,3.2492]
[1720501284912,2.4015,3078.5,3077.8,3.24898]
[1720501285111,2.4015,3078.5,3077.9,3.24895]
[1720501285483,7.36,3079.0,3078.6,3.24813]
[1720501285793,2.4129,3079.1,3078.6,3.24813]
[1720501285794,2.4129,3079.1,3078.6,3.24816]
[1720501285997,2.65419,3079.1,3078.4,3.24836]
[1720501286176,2.65419,3079.1,3078.2,3.24863]
[1720501286382,0.265419,3079.0,3078.2,3.24863]
[1720501286909,0.265419,3079.0,3077.7,3.24914]
[1720501287104,2.4413,3078.9,3077.9,3.24887]
[1720501287420,2.4413,3078.9,3077.8,3.24901]
[1720501287707,2.4413,3078.9,3077.6,3.24921]
[1720501287917,1.36968818,3078.8,3077.2,0.06497987]
[1720501288119,0.24413,3078.8,3078.0,3.24885]
[1720501288330,3.24413,3078.8,3078.0,3.24885]
[1720501288492,0.568543,3078.7,3078.0,3.24885]
[1720501289199,2.3604,3078.6,3077.9,3.24895]
[1720501290906,2.3604,3078.6,3078.0,3.24885]
[1720501291094,2.9532943,3078.6,3078.0,3.24885]
[1720501292185,1.12554767,3078.5,3078.0,3.24885]
[1720501292404,2.9532943,3078.6,3078.0,3.24885]
[1720501292618,1.12554916,3078.5,3078.0,3.24885]
[1720501292820,2.9532943,3078.6,3077.9,3.24896]
[1720501293033,1.42088207,3078.5,3077.9,3.24896]
[1720501293229,0.29532943,3078.5,3077.9,3.24896]
[1720501293888,0.29532943,3078.5,3078.0,3.24885]
[1720501294685,2.9532943,3078.6,3078.0,0.06497618]
[1720501294686,2.3604,3078.6,3078.0,0.06497618]
[1720501294904,2.3604,3078.6,3078.3,3.24845]
[1720501297236,2.3638,3079.1,3078.5,3.24827]
[1720501297410,1.12538228,3079.0,3078.5,3.24827]
[1720501297610,2.3638,3079.1,3078.5,3.24827]
[1720501297811,1.12532962,3079.0,3078.5,3.24827]
[1720501298019,2.3638,3079.1,3078.5,3.24827]
[1720501298214,2.60018,3079.1,3078.5,3.24827]
[1720501298411,1.12533789,3079.0,3078.5,3.24827]
[1720501298619,2.60018,3079.1,3078.1,3.24866]
[1720501298809,1.12536983,3079.0,3078.2,3.24862]
[1720501299026,0.37255498,3078.9,3078.2,3.24862]
[1720501299420,1.12544101,3078.8,3078.2,3.24862]
[1720501299626,0.37255498,3078.9,3078.2,3.24862]
[1720501299826,1.12544774,3078.8,3078.2,3.24862]
[1720501300026,0.37255498,3078.9,3078.2,3.24862]
[1720501300337,1.12542602,3078.8,3078.2,3.24862]
[1720501300636,2.3638,3079.1,3078.6,3.24814]
[1720501301508,2.3638,3079.1,3078.6,6.49628]
[1720501301836,2.3638,3079.1,3078.6,3.24814]
[1720501302212,5.49,3079.4,3078.6,3.24814]
[1720501302412,1.12526933,3079.3,3078.9,3.24788]
[1720501302623,2.49,3079.4,3078.9,3.24788]
[1720501305044,2.49,3079.4,3077.8,3.05660168]
[1720501305206,2.3837,3079.1,3078.2,3.24862]
[1720501305418,1.53303018,3079.0,3078.2,3.24862]
[1720501305622,1.12526018,3078.9,3078.2,3.24862]
[1720501306025,1.12526018,3078.9,3078.0,3.24877]
[1720501306839,1.12526018,3078.9,3078.1,3.24874]
[1720501307040,1.12526018,3078.9,3078.2,3.24864]
[1720501307528,2.3837,3079.1,3078.3,3.24844]
[1720501307854,2.3837,3079.1,3078.5,3.24832]
[1720501308040,0.23837,3079.0,3078.5,3.24832]
[1720501308358,5.09769206,3079.5,3078.8,3.24793]
[1720501309022,1.12522587,3079.4,3078.8,3.24793]
[1720501309226,5.09769206,3079.5,3078.8,3.24793]
[1720501309426,5.60746127,3079.5,3078.8,3.24793]
[1720501309722,1.1251912,3079.4,3078.8,3.24793]
[1720501309951,5.60746127,3079.5,3078.9,3.24789]
[1720501310262,1.12520115,3079.4,3078.9,3.24789]
[1720501310563,5.60746127,3079.5,3078.9,3.24789]
[1720501310967,1.12520996,3079.4,3078.9,3.24789]
[1720501311123,5.60746127,3079.5,3078.9,3.24789]
[1720501311327,1.12521472,3079.4,3078.9,3.24789]
[1720501311524,7.36,3079.8,3079.3,3.24749]
[1720501311769,2.3901,3080.1,3079.3,3.24749]
[1720501312060,1.12504923,3080.0,3079.4,3.24734]
[1720501312265,2.3901,3080.1,3079.4,3.24734]
[1720501312475,1.12498763,3080.0,3079.4,3.24734]
[1720501312767,2.3901,3080.1,3079.4,3.24734]
[1720501312948,0.23901,3080.0,3079.4,3.24734]
[1720501315035,2.3901,3080.1,3079.4,0.06494414]
[1720501315242,3.0,3080.3,3079.4,0.06494414]
[1720501315453,1.12497085,3080.2,3079.4,0.06494414]
[1720501315762,3.0,3080.3,3079.4,0.06494414]
[1720501315966,1.12496709,3080.2,3079.7,3.24706]
[1720501316266,1.036,3080.3,3079.7,3.24706]
[1720501317168,3.0,3080.5,3079.7,3.24706]
[1720501317352,1.12495359,3080.4,3079.7,3.24706]
[1720501317534,5.3554,3080.6,3079.7,3.24706]
[1720501317733,1.12493213,3080.5,3079.7,3.24706]
[1720501317949,1.77296534,3080.4,3079.7,3.24706]
[1720501318150,0.64803321,3080.4,3079.7,3.24706]
[1720501318887,3.76753465,3080.3,3079.1,3.24761]
[1720501319191,1.12499359,3080.2,3079.3,3.24748]
[1720501320105,1.12499359,3080.2,3079.5,3.24726]
[1720501320393,2.3281,3080.3,3079.5,3.24726]
[1720501320555,0.34014286,3080.1,3079.5,3.24726]
[1720501321275,0.34014286,3080.1,3079.3,3.24742]
[1720501321602,1.12506062,3080.0,3079.0,3.24777]
[1720501321778,0.34014286,3080.1,3079.0,3.24777]
[1720501322088,1.12510144,3080.0,3079.0,3.24777]
[1720501322293,0.34014286,3080.1,3079.0,3.24777]
[1720501322468,1.125095,3080.0,3079.0,3.24777]
[1720501322662,1.125095,3080.0,3078.9,0.06494937]
[1720501322991,0.34014286,3080.1,3079.3,3.24739]
[1720501323291,0.34014286,3080.1,3079.2,3.24752]
[1720501323658,0.60696715,3080.1,3079.3,3.24738]
[1720501323858,0.34014286,3080.1,3079.5,3.2472]
[1720501324168,0.34014286,3080.1,3079.5,3.31213866]
[1720501324759,0.34014286,3080.1,3079.5,3.2472]
[1720501325191,0.34014286,3080.1,3079.6,3.24714]
[1720501326173,0.34014286,3080.1,3079.6,3.31207651]
[1720501326354,0.34014286,3080.1,3079.5,3.2472]
[1720501326705,0.34014286,3080.1,3079.1,3.24762]
[1720501326706,2.474,3080.0,3079.1,3.24762]
[1720501326903,0.28141429,3079.9,3078.9,3.24782]
[1720501327469,0.28141429,3079.9,3079.0,3.24779]
[1720501327678,0.28141429,3079.9,3078.8,2.2686]
[1720501327860,2.474,3080.0,3079.1,3.24763]
[1720501328063,2.474,3080.0,3078.1,0.94187565]
[1720501328267,2.474,3080.0,3077.6,2.4113]
[1720501328268,2.474,3079.3,3077.6,2.4113]
[1720501328578,2.3301,3079.1,3077.6,3.24926]
[1720501328894,3.137898,3079.0,3077.6,3.24926]
[1720501329122,3.137898,3079.0,3077.4,3.24948]
[1720501329123,3.31467489,3078.9,3077.4,3.24948]